[Event "Late-Titled-Tuesday-Blitz-April-23-2024"]
[Site "Chess.com"]
[Date "2024.04.23"]
[Round "3"]
[White "KNVB"]
[Black "Fandorine"]
[Result "0-1"]
[WhiteElo "2711"]
[BlackElo "2930"]
[TimeControl "180+1"]
[EndTime "14:31:41 PDT"]
[Termination "Fandorine won by resignation"]

1. d4 {[%clk 0:03:00.9]} 1... Nf6 {[%clk 0:02:58]} 2. Bf4 {[%clk 0:03:00.9]}
2... d6 {[%clk 0:02:57.5]} 3. e3 {[%clk 0:03:01.3]} 3... g6 {[%clk 0:02:56.4]}
4. h3 {[%clk 0:03:01.6]} 4... Bg7 {[%clk 0:02:56.1]} 5. Nf3 {[%clk 0:03:02.1]}
5... c5 {[%clk 0:02:52.7]} 6. c3 {[%clk 0:03:01.6]} 6... Qb6 {[%clk 0:02:52.7]}
7. Qb3 {[%clk 0:03:00.2]} 7... Be6 {[%clk 0:02:52.7]} 8. Qxb6 {[%clk 0:03:00.7]}
8... axb6 {[%clk 0:02:53.6]} 9. a3 {[%clk 0:03:01.6]} 9... Bd5 {[%clk 0:02:53]}
10. Nbd2 {[%clk 0:03:01.9]} 10... O-O {[%clk 0:02:47.5]} 11. Bd3 {[%clk
0:03:02.2]} 11... cxd4 {[%clk 0:02:33]} 12. exd4 {[%clk 0:02:46.9]} 12... Bc6
{[%clk 0:02:32.7]} 13. O-O {[%clk 0:02:44.6]} 13... b5 {[%clk 0:02:31.2]} 14.
Rfe1 {[%clk 0:02:44.3]} 14... Nd5 {[%clk 0:02:25.3]} 15. Bg3 {[%clk 0:02:26.5]}
15... Nd7 {[%clk 0:02:22.1]} 16. Nf1 {[%clk 0:02:22.4]} 16... N7b6 {[%clk
0:02:21.9]} 17. N3d2 {[%clk 0:02:22]} 17... Rfd8 {[%clk 0:02:12.9]} 18. Ne3
{[%clk 0:02:21.2]} 18... Kf8 {[%clk 0:02:11.3]} 19. Bh4 {[%clk 0:02:19.1]} 19...
Bf6 {[%clk 0:02:04.2]} 20. Bxf6 {[%clk 0:02:18.9]} 20... Nxf6 {[%clk 0:02:03.8]}
21. f3 {[%clk 0:01:29.8]} 21... e5 {[%clk 0:01:34.3]} 22. Kf2 {[%clk 0:01:29.5]}
22... h5 {[%clk 0:01:28.5]} 23. h4 {[%clk 0:01:29.5]} 23... Re8 {[%clk
0:01:11.7]} 24. Bc2 {[%clk 0:01:26.7]} 24... Rad8 {[%clk 0:01:10.2]} 25. Rad1
{[%clk 0:01:23.8]} 25... Kg7 {[%clk 0:01:02.9]} 26. Bb3 {[%clk 0:01:08.1]} 26...
Re7 {[%clk 0:00:48.3]} 27. Ndf1 {[%clk 0:00:48.4]} 27... Rde8 {[%clk 0:00:41.5]}
28. Rd2 {[%clk 0:00:39.8]} 28... exd4 {[%clk 0:00:23.5]} 29. Rxd4 {[%clk
0:00:36.3]} 29... d5 {[%clk 0:00:24]} 30. Rdd1 {[%clk 0:00:31.7]} 30... Nc4
{[%clk 0:00:21.2]} 31. Bxc4 {[%clk 0:00:23.6]} 31... dxc4 {[%clk 0:00:21.6]} 32.
Nc2 {[%clk 0:00:22.6]} 32... Nd7 {[%clk 0:00:21]} 33. Rxe7 {[%clk 0:00:07.1]}
33... Rxe7 {[%clk 0:00:21.9]} 34. Nfe3 {[%clk 0:00:06.1]} 34... Nc5 {[%clk
0:00:20.8]} 35. Ne1 {[%clk 0:00:06.8]} 35... Na4 {[%clk 0:00:16.5]} 36. Rd2
{[%clk 0:00:07.2]} 36... Rd7 {[%clk 0:00:14.9]} 37. Rxd7 {[%clk 0:00:05.4]}
37... Bxd7 {[%clk 0:00:14.8]} 38. Nd1 {[%clk 0:00:06]} 38... Kf6 {[%clk
0:00:12.4]} 39. Ke3 {[%clk 0:00:05.4]} 39... Ke5 {[%clk 0:00:10.2]} 40. Nc2
{[%clk 0:00:05.4]} 40... f6 {[%clk 0:00:10.5]} 41. Nb4 {[%clk 0:00:03]} 41... g5
{[%clk 0:00:10.2]} 42. g3 {[%clk 0:00:03.3]} 42... gxh4 {[%clk 0:00:10.1]} 43.
gxh4 {[%clk 0:00:04.2]} 43... Be6 {[%clk 0:00:06.1]} 44. f4+ {[%clk 0:00:04.2]}
44... Kf5 {[%clk 0:00:06.3]} 45. Kf3 {[%clk 0:00:04.9]} 45... Bd7 {[%clk
0:00:06.7]} 46. Ne3+ {[%clk 0:00:05]} 46... Ke6 {[%clk 0:00:05.8]} 47. Nd1
{[%clk 0:00:04.8]} 47... Be8 {[%clk 0:00:04.5]} 48. Nc2 {[%clk 0:00:04.1]} 48...
Kd5 {[%clk 0:00:04]} 49. Nd4 {[%clk 0:00:05]} 49... Bd7 {[%clk 0:00:03.6]} 50.
Ne3+ {[%clk 0:00:05.2]} 50... Kd6 {[%clk 0:00:03.3]} 51. f5 {[%clk 0:00:02.4]}
51... Ke5 {[%clk 0:00:03.1]} 52. Nd1 {[%clk 0:00:01]} 52... Bc6+ {[%clk
0:00:03.4]} 53. Ke3 {[%clk 0:00:01.7]} 53... Be8 {[%clk 0:00:03.1]} 54. b3
{[%clk 0:00:01.6]} 54... Nb6 {[%clk 0:00:03.1]} 55. b4 {[%clk 0:00:01.7]} 55...
Nd5+ {[%clk 0:00:03.1]} 56. Kd2 {[%clk 0:00:02.3]} 56... Nf4 {[%clk 0:00:03]}
57. Ne3 {[%clk 0:00:01.5]} 57... Ke4 {[%clk 0:00:03.5]} 58. Nf1 {[%clk
0:00:01.8]} 58... Ng2 {[%clk 0:00:02.6]} 59. Ne6 {[%clk 0:00:01.8]} 59... Ke5
{[%clk 0:00:01.4]} 60. Nc7 {[%clk 0:00:02.2]} 60... Bc6 {[%clk 0:00:01.7]} 61.
Ng3 {[%clk 0:00:02.7]} 61... Nxh4 {[%clk 0:00:01.7]} 62. Nxh5 {[%clk 0:00:02.9]}
62... Nxf5 {[%clk 0:00:02.4]} 63. Ng7 {[%clk 0:00:01.4]} 63... Nd6 {[%clk
0:00:03]} 64. Nh5 {[%clk 0:00:01.5]} 64... f5 {[%clk 0:00:03.6]} 65. Ke3 {[%clk
0:00:01.9]} 65... Ne4 {[%clk 0:00:04.1]} 66. Nf4 {[%clk 0:00:01.6]} 66... Nxc3
{[%clk 0:00:04.7]} 67. Ng6+ {[%clk 0:00:02.1]} 67... Kd6 {[%clk 0:00:05.3]} 68.
Na8 {[%clk 0:00:01.9]} 68... Nd5+ {[%clk 0:00:05.4]} 69. Kd4 {[%clk 0:00:02.6]}
69... f4 {[%clk 0:00:05.9]} 70. Ne5 {[%clk 0:00:02.2]} 70... Ne7 {[%clk
0:00:06]} 71. Ng4 {[%clk 0:00:01.9]} 71... Ke6 {[%clk 0:00:06.2]} 72. Nb6 {[%clk
0:00:02.3]} 72... Nf5+ {[%clk 0:00:06.3]} 73. Kc3 {[%clk 0:00:02.3]} 73... f3
{[%clk 0:00:06.8]} 74. Nf2 {[%clk 0:00:01.5]} 74... Ke5 {[%clk 0:00:07.4]} 75.
a4 {[%clk 0:00:02.1]} 75... bxa4 {[%clk 0:00:07.1]} 76. Nxc4+ {[%clk 0:00:02]}
76... Kf4 {[%clk 0:00:07.6]} 77. Na3 {[%clk 0:00:01.5]} 77... b5 {[%clk
0:00:06.9]} 78. Nd3+ {[%clk 0:00:01.6]} 78... Kg3 {[%clk 0:00:06.4]} 79. Nc2
{[%clk 0:00:01.6]} 79... f2 {[%clk 0:00:06.3]} 80. Nxf2 {[%clk 0:00:01.8]} 80...
Kxf2 {[%clk 0:00:07.2]} 81. Na3 {[%clk 0:00:02]} 81... Ne3 {[%clk 0:00:06.7]}
82. Kd4 {[%clk 0:00:02.1]} 82... Nd1 {[%clk 0:00:04.2]} 83. Kc5 {[%clk
0:00:02.3]} 83... Be8 {[%clk 0:00:04.8]} 84. Nc2 {[%clk 0:00:01.3]} 84... Ke2
{[%clk 0:00:05]} 85. Na3 {[%clk 0:00:01.1]} 85... Kd3 {[%clk 0:00:05.3]} 86. Kb6
{[%clk 0:00:01.2]} 86... Ne3 {[%clk 0:00:04.6]} 87. Ka5 {[%clk 0:00:02.1]} 87...
Nc4+ {[%clk 0:00:04.4]} 88. Nxc4 {[%clk 0:00:02.4]} 88... Kxc4 {[%clk 0:00:05]}
89. Kb6 {[%clk 0:00:02.5]} 89... a3 {[%clk 0:00:05.6]} 90. Ka7 {[%clk
0:00:02.7]} 90... a2 {[%clk 0:00:06]} 91. Kb6 {[%clk 0:00:03.3]} 91... Kxb4
{[%clk 0:00:06.6]} 0-1

[Event "Late-Titled-Tuesday-Blitz-April-23-2024"]
[Site "Chess.com"]
[Date "2024.04.23"]
[Round "3"]
[White "Slovak_fighter2000"]
[Black "Fins0905"]
[Result "1-0"]
[WhiteElo "2544"]
[BlackElo "2768"]
[TimeControl "180+1"]
[EndTime "14:32:09 PDT"]
[Termination "Slovak_fighter2000 won by resignation"]

1. d4 {[%clk 0:02:59.7]} 1... d5 {[%clk 0:02:50.3]} 2. Nf3 {[%clk 0:02:59.8]}
2... Nf6 {[%clk 0:02:50.1]} 3. c4 {[%clk 0:03:00.1]} 3... c6 {[%clk 0:02:49.7]}
4. e3 {[%clk 0:02:58.8]} 4... Bf5 {[%clk 0:02:49.2]} 5. Nc3 {[%clk 0:02:58.7]}
5... e6 {[%clk 0:02:49.4]} 6. Qb3 {[%clk 0:02:59]} 6... Qc7 {[%clk 0:02:47.4]}
7. Nh4 {[%clk 0:02:59.1]} 7... Be4 {[%clk 0:02:47.1]} 8. f3 {[%clk 0:02:58.1]}
8... Bg6 {[%clk 0:02:47.2]} 9. Nxg6 {[%clk 0:02:55.9]} 9... hxg6 {[%clk
0:02:46.8]} 10. g3 {[%clk 0:02:55.4]} 10... Nbd7 {[%clk 0:02:43.5]} 11. Bd2
{[%clk 0:02:53.7]} 11... dxc4 {[%clk 0:02:36.4]} 12. Qxc4 {[%clk 0:02:51.4]}
12... Bd6 {[%clk 0:02:25.6]} 13. f4 {[%clk 0:02:48.1]} 13... b5 {[%clk
0:02:12.9]} 14. Qe2 {[%clk 0:02:38.4]} 14... b4 {[%clk 0:02:01.3]} 15. Na4
{[%clk 0:02:30]} 15... Qa5 {[%clk 0:01:36.1]} 16. b3 {[%clk 0:02:27]} 16... Rc8
{[%clk 0:01:29.2]} 17. Qa6 {[%clk 0:02:21.8]} 17... Qxa6 {[%clk 0:01:19.7]} 18.
Bxa6 {[%clk 0:02:22.7]} 18... Rc7 {[%clk 0:01:20.1]} 19. O-O {[%clk 0:02:04.8]}
19... Ne4 {[%clk 0:01:18.1]} 20. Rfd1 {[%clk 0:01:59]} 20... Nxd2 {[%clk
0:01:07.9]} 21. Rxd2 {[%clk 0:01:59]} 21... Nb6 {[%clk 0:00:58.3]} 22. Nxb6
{[%clk 0:01:50]} 22... axb6 {[%clk 0:00:59.2]} 23. Be2 {[%clk 0:01:47.1]} 23...
Kd7 {[%clk 0:00:54]} 24. Bf3 {[%clk 0:01:43.8]} 24... Ra8 {[%clk 0:00:50]} 25.
Rc1 {[%clk 0:01:37.8]} 25... Ra5 {[%clk 0:00:45.1]} 26. Rdc2 {[%clk 0:01:33.6]}
26... c5 {[%clk 0:00:45.5]} 27. dxc5 {[%clk 0:01:34]} 27... Bxc5 {[%clk
0:00:41.9]} 28. Kf2 {[%clk 0:01:30]} 28... Rca7 {[%clk 0:00:40.5]} 29. Rd1+
{[%clk 0:01:27.3]} 29... Ke7 {[%clk 0:00:39.9]} 30. Rdd2 {[%clk 0:01:27.8]}
30... f5 {[%clk 0:00:37.8]} 31. h4 {[%clk 0:01:25.6]} 31... e5 {[%clk
0:00:31.4]} 32. Ke2 {[%clk 0:01:19.6]} 32... e4 {[%clk 0:00:30.1]} 33. Bg2
{[%clk 0:01:18.8]} 33... Rd7 {[%clk 0:00:24.3]} 34. Rxd7+ {[%clk 0:01:17.5]}
34... Kxd7 {[%clk 0:00:25.2]} 35. Bf1 {[%clk 0:01:13.7]} 35... Ke7 {[%clk
0:00:22.5]} 36. Kf2 {[%clk 0:01:13.3]} 36... Ra7 {[%clk 0:00:22]} 37. Bb5 {[%clk
0:01:11.4]} 37... Ra8 {[%clk 0:00:18]} 38. Rd2 {[%clk 0:01:08.4]} 38... Bd6
{[%clk 0:00:17.6]} 39. Rc2 {[%clk 0:01:06.5]} 39... Rd8 {[%clk 0:00:17.7]} 40.
Ke2 {[%clk 0:01:00.8]} 40... Bc5 {[%clk 0:00:15.9]} 41. Rd2 {[%clk 0:00:59.8]}
41... Ra8 {[%clk 0:00:12]} 42. Rd7+ {[%clk 0:00:49.4]} 42... Ke6 {[%clk
0:00:12.3]} 43. Rd2 {[%clk 0:00:49.6]} 43... Ra5 {[%clk 0:00:12.2]} 44. Bc4+
{[%clk 0:00:45.5]} 44... Ke7 {[%clk 0:00:12.2]} 45. Rc2 {[%clk 0:00:41.7]} 45...
Ra7 {[%clk 0:00:04.9]} 46. Rd2 {[%clk 0:00:40.9]} 46... Ra5 {[%clk 0:00:04.7]}
47. Rc2 {[%clk 0:00:41]} 47... b5 {[%clk 0:00:04.5]} 48. Bd5 {[%clk 0:00:37.9]}
48... Kd6 {[%clk 0:00:04]} 49. Bf7 {[%clk 0:00:36.5]} 49... Bb6 {[%clk
0:00:03.8]} 50. Bxg6 {[%clk 0:00:35.8]} 50... Bc5 {[%clk 0:00:03.5]} 51. Bxf5
{[%clk 0:00:35.5]} 51... Ra6 {[%clk 0:00:04.3]} 52. Bxe4 {[%clk 0:00:35.4]}
52... Ra7 {[%clk 0:00:04.9]} 53. Kf3 {[%clk 0:00:35.6]} 53... Re7 {[%clk
0:00:04.9]} 54. Rd2+ {[%clk 0:00:35.7]} 54... Kc7 {[%clk 0:00:05.2]} 55. Rc2
{[%clk 0:00:35.6]} 55... Kb6 {[%clk 0:00:05.8]} 56. g4 {[%clk 0:00:33.5]} 56...
Rd7 {[%clk 0:00:06.4]} 57. g5 {[%clk 0:00:26.9]} 57... Rd1 {[%clk 0:00:06.3]}
58. Re2 {[%clk 0:00:25.3]} 58... Rg1 {[%clk 0:00:05.8]} 59. h5 {[%clk
0:00:23.9]} 59... Rh1 {[%clk 0:00:05.9]} 60. Bg6 {[%clk 0:00:24.1]} 60... Rh3+
{[%clk 0:00:05.1]} 61. Ke4 {[%clk 0:00:24.5]} 61... Kc6 {[%clk 0:00:04.7]} 62.
Be8+ {[%clk 0:00:23.8]} 62... Kd6 {[%clk 0:00:05]} 63. Bxb5 {[%clk 0:00:18.5]}
63... Rxh5 {[%clk 0:00:04.6]} 64. Bc4 {[%clk 0:00:17.4]} 64... Rh3 {[%clk
0:00:04.7]} 65. f5 {[%clk 0:00:14.9]} 65... Ke7 {[%clk 0:00:04.5]} 66. Kf4
{[%clk 0:00:13.6]} 66... Bd6+ {[%clk 0:00:04.5]} 67. Ke4 {[%clk 0:00:12.6]}
67... Rh4+ {[%clk 0:00:04.5]} 68. Kd5 {[%clk 0:00:12.6]} 68... Rh5 {[%clk
0:00:03.9]} 69. Rg2 {[%clk 0:00:10.6]} 69... Rh1 {[%clk 0:00:03.5]} 70. f6+
{[%clk 0:00:10.7]} 70... gxf6 {[%clk 0:00:02.1]} 71. gxf6+ {[%clk 0:00:11.6]}
71... Kd7 {[%clk 0:00:02.7]} 72. f7 {[%clk 0:00:11.5]} 72... Bf8 {[%clk
0:00:02.8]} 73. Rg8 {[%clk 0:00:08.9]} 73... Ke7 {[%clk 0:00:02.9]} 74. Kc6
{[%clk 0:00:07.8]} 74... Rh5 {[%clk 0:00:03.1]} 75. Rg4 {[%clk 0:00:07.2]} 75...
Re5 {[%clk 0:00:03.2]} 76. e4 {[%clk 0:00:06.7]} 76... Kf6 {[%clk 0:00:03.5]}
77. Bd5 {[%clk 0:00:07]} 77... Ke7 {[%clk 0:00:04]} 78. Rg8 {[%clk 0:00:07.1]}
78... Rh5 {[%clk 0:00:03.6]} 79. Kb5 {[%clk 0:00:07]} 79... Rh2 {[%clk
0:00:04.3]} 80. Kxb4 {[%clk 0:00:06.6]} 80... Rxa2 {[%clk 0:00:05]} 81. Kc4
{[%clk 0:00:06.9]} 81... Rc2+ {[%clk 0:00:05.2]} 82. Kb5 {[%clk 0:00:06.9]}
82... Rf2 {[%clk 0:00:04.1]} 83. b4 {[%clk 0:00:07.2]} 83... Rb2 {[%clk
0:00:04.3]} 84. Kc4 {[%clk 0:00:07.4]} 84... Rb1 {[%clk 0:00:04.2]} 85. b5
{[%clk 0:00:07.8]} 85... Rc1+ {[%clk 0:00:04.3]} 86. Kd4 {[%clk 0:00:07.4]}
86... Rd1+ {[%clk 0:00:02.8]} 87. Kc5 {[%clk 0:00:07.6]} 87... Rc1+ {[%clk
0:00:03.1]} 88. Kb6 {[%clk 0:00:07.8]} 88... Rb1 {[%clk 0:00:03.5]} 89. Kc6
{[%clk 0:00:06.7]} 89... Rc1+ {[%clk 0:00:03]} 90. Kb7 {[%clk 0:00:07.2]} 90...
Bh6 {[%clk 0:00:03.3]} 91. Re8+ {[%clk 0:00:06.8]} 91... Kd7 {[%clk 0:00:03.8]}
92. f8=Q {[%clk 0:00:07.4]} 92... Bxf8 {[%clk 0:00:04]} 93. Rxf8 {[%clk
0:00:08.3]} 1-0

[Event "Late-Titled-Tuesday-Blitz-April-23-2024"]
[Site "Chess.com"]
[Date "2024.04.23"]
[Round "3"]
[White "carloseduar100"]
[Black "TheFireChess"]
[Result "1/2-1/2"]
[WhiteElo "2197"]
[BlackElo "2416"]
[TimeControl "180+1"]
[EndTime "14:32:44 PDT"]
[Termination "Game drawn by 50-move rule"]

1. d4 {[%clk 0:02:58]} 1... Nf6 {[%clk 0:02:57.8]} 2. Bg5 {[%clk 0:02:41.1]}
2... e6 {[%clk 0:02:52.3]} 3. e4 {[%clk 0:02:40.8]} 3... h6 {[%clk 0:02:51.1]}
4. Bxf6 {[%clk 0:02:40]} 4... Qxf6 {[%clk 0:02:50.6]} 5. c3 {[%clk 0:02:40.9]}
5... d6 {[%clk 0:02:48]} 6. Nd2 {[%clk 0:02:36.7]} 6... b6 {[%clk 0:02:47.9]} 7.
Bd3 {[%clk 0:02:36.7]} 7... Bb7 {[%clk 0:02:48.1]} 8. Ne2 {[%clk 0:02:37.4]}
8... Nd7 {[%clk 0:02:48.4]} 9. O-O {[%clk 0:02:27.9]} 9... g5 {[%clk 0:02:46.7]}
10. a4 {[%clk 0:02:28]} 10... Bg7 {[%clk 0:02:44.4]} 11. a5 {[%clk 0:02:28.2]}
11... O-O {[%clk 0:02:42.1]} 12. f4 {[%clk 0:02:27.9]} 12... g4 {[%clk
0:02:41.7]} 13. e5 {[%clk 0:02:27.3]} 13... Qe7 {[%clk 0:02:37.8]} 14. Ng3
{[%clk 0:02:25.8]} 14... f5 {[%clk 0:02:37.4]} 15. exf6 {[%clk 0:02:20.5]} 15...
Nxf6 {[%clk 0:02:37.6]} 16. Qe2 {[%clk 0:02:20.6]} 16... h5 {[%clk 0:02:33.3]}
17. f5 {[%clk 0:02:20.7]} 17... h4 {[%clk 0:02:30.1]} 18. Nh1 {[%clk 0:02:16.6]}
18... Rae8 {[%clk 0:02:24.2]} 19. Rae1 {[%clk 0:02:14.9]} 19... e5 {[%clk
0:02:20.1]} 20. dxe5 {[%clk 0:02:09.9]} 20... Qxe5 {[%clk 0:02:21]} 21. Qxe5
{[%clk 0:02:04.9]} 21... Rxe5 {[%clk 0:02:21.9]} 22. Rxe5 {[%clk 0:02:05.2]}
22... dxe5 {[%clk 0:02:22.8]} 23. Re1 {[%clk 0:02:03.8]} 23... Rd8 {[%clk
0:02:22.6]} 24. Bc4+ {[%clk 0:02:03.1]} 24... Kh7 {[%clk 0:02:06.9]} 25. Nb3
{[%clk 0:02:02.5]} 25... Kh6 {[%clk 0:01:53.8]} 26. Nf2 {[%clk 0:02:02.4]} 26...
Kg5 {[%clk 0:01:53.6]} 27. Be6 {[%clk 0:02:02.6]} 27... Nh5 {[%clk 0:01:41.1]}
28. axb6 {[%clk 0:02:00.4]} 28... axb6 {[%clk 0:01:42]} 29. Nxg4 {[%clk
0:01:59.7]} 29... Kxg4 {[%clk 0:01:39.2]} 30. f6+ {[%clk 0:01:59.7]} 30... Kg5
{[%clk 0:01:34.2]} 31. fxg7 {[%clk 0:01:57.2]} 31... Nxg7 {[%clk 0:01:35.1]} 32.
Bc4 {[%clk 0:01:46.2]} 32... Kf6 {[%clk 0:01:33.7]} 33. Re2 {[%clk 0:01:37.8]}
33... Nf5 {[%clk 0:01:32.5]} 34. Nd2 {[%clk 0:01:35.2]} 34... Nd6 {[%clk
0:01:32.4]} 35. Bb3 {[%clk 0:01:30.9]} 35... e4 {[%clk 0:01:22.4]} 36. Bc2
{[%clk 0:01:29.9]} 36... Re8 {[%clk 0:01:19.2]} 37. Kf2 {[%clk 0:01:28.9]} 37...
Ke5 {[%clk 0:01:17.7]} 38. Re3 {[%clk 0:01:14.6]} 38... Rf8+ {[%clk 0:01:15.5]}
39. Ke1 {[%clk 0:01:12]} 39... Rg8 {[%clk 0:01:13]} 40. g3 {[%clk 0:01:08.1]}
40... hxg3 {[%clk 0:01:12.3]} 41. Rxg3 {[%clk 0:01:09]} 41... Rh8 {[%clk
0:01:11.4]} 42. Rg7 {[%clk 0:01:01.5]} 42... Rxh2 {[%clk 0:01:07.7]} 43. Rxc7
{[%clk 0:01:01.7]} 43... Bd5 {[%clk 0:01:03.8]} 44. c4 {[%clk 0:01:00.4]} 44...
Be6 {[%clk 0:01:01.3]} 45. b4 {[%clk 0:00:59]} 45... Rh1+ {[%clk 0:00:57.1]} 46.
Kf2 {[%clk 0:00:54.5]} 46... Rh2+ {[%clk 0:00:55.8]} 47. Ke1 {[%clk 0:00:54.4]}
47... Bg4 {[%clk 0:00:43.5]} 48. Bd1 {[%clk 0:00:29.5]} 48... Rh1+ {[%clk
0:00:39.9]} 49. Nf1 {[%clk 0:00:29.3]} 49... Bxd1 {[%clk 0:00:38.6]} 50. c5
{[%clk 0:00:29.5]} 50... bxc5 {[%clk 0:00:34.1]} 51. Rxc5+ {[%clk 0:00:29.3]}
51... Ke6 {[%clk 0:00:27]} 52. b5 {[%clk 0:00:26.3]} 52... Bf3 {[%clk
0:00:11.5]} 53. Kf2 {[%clk 0:00:24.3]} 53... Rh8 {[%clk 0:00:09.2]} 54. Ng3
{[%clk 0:00:19.6]} 54... Rb8 {[%clk 0:00:10.1]} 55. Ke3 {[%clk 0:00:18.4]} 55...
Nxb5 {[%clk 0:00:09.1]} 56. Nxe4 {[%clk 0:00:17.5]} 56... Bxe4 {[%clk 0:00:10]}
57. Kxe4 {[%clk 0:00:18.4]} 57... Nd6+ {[%clk 0:00:10.7]} 58. Ke3 {[%clk
0:00:18.6]} 58... Rb3+ {[%clk 0:00:10.5]} 59. Kd2 {[%clk 0:00:18.6]} 59... Rh3
{[%clk 0:00:11.1]} 60. Ke2 {[%clk 0:00:16]} 60... Rb3 {[%clk 0:00:10.4]} 61. Rh5
{[%clk 0:00:14.4]} 61... Ne4 {[%clk 0:00:10.6]} 62. Kd1 {[%clk 0:00:13.3]} 62...
Rd3+ {[%clk 0:00:10.1]} 63. Kc1 {[%clk 0:00:13.5]} 63... Rc3+ {[%clk 0:00:11]}
64. Kb1 {[%clk 0:00:13.9]} 64... Rc8 {[%clk 0:00:11.9]} 65. Ra5 {[%clk 0:00:14]}
65... Kd6 {[%clk 0:00:11.7]} 66. Rh5 {[%clk 0:00:13.5]} 66... Ke6 {[%clk
0:00:11.8]} 67. Ra5 {[%clk 0:00:13.6]} 67... Nd2+ {[%clk 0:00:12.1]} 68. Ka2
{[%clk 0:00:12.7]} 68... Rc2+ {[%clk 0:00:11.5]} 69. Ka3 {[%clk 0:00:11.1]}
69... Rc1 {[%clk 0:00:11.8]} 70. Ka2 {[%clk 0:00:11.3]} 70... Kd6 {[%clk
0:00:10]} 71. Rh5 {[%clk 0:00:11.5]} 71... Rc8 {[%clk 0:00:08.3]} 72. Ka3 {[%clk
0:00:11.7]} 72... Nc4+ {[%clk 0:00:08.1]} 73. Ka2 {[%clk 0:00:11.7]} 73... Ne5
{[%clk 0:00:09]} 74. Ka3 {[%clk 0:00:11.9]} 74... Kd5 {[%clk 0:00:09.9]} 75. Ka2
{[%clk 0:00:12.4]} 75... Kd4 {[%clk 0:00:10.5]} 76. Ka3 {[%clk 0:00:12.9]} 76...
Nd3 {[%clk 0:00:10.4]} 77. Rh6 {[%clk 0:00:11]} 77... Kc3 {[%clk 0:00:10.6]} 78.
Ka4 {[%clk 0:00:10]} 78... Ne5 {[%clk 0:00:10.3]} 79. Rh3+ {[%clk 0:00:09.3]}
79... Kc4 {[%clk 0:00:10.7]} 80. Rh4+ {[%clk 0:00:09.7]} 80... Kc5 {[%clk
0:00:11.2]} 81. Ka3 {[%clk 0:00:09.9]} 81... Ra8+ {[%clk 0:00:11.4]} 82. Kb2
{[%clk 0:00:10.2]} 82... Nc4+ {[%clk 0:00:10.5]} 83. Kc3 {[%clk 0:00:09.5]}
83... Ra3+ {[%clk 0:00:10.9]} 84. Kc2 {[%clk 0:00:10.3]} 84... Rg3 {[%clk
0:00:11.8]} 85. Rh5+ {[%clk 0:00:10]} 85... Kb4 {[%clk 0:00:12]} 86. Rh8 {[%clk
0:00:10.1]} 86... Rg2+ {[%clk 0:00:12.1]} 87. Kd3 {[%clk 0:00:10.5]} 87... Ne5+
{[%clk 0:00:12.3]} 88. Ke4 {[%clk 0:00:11]} 88... Nc6 {[%clk 0:00:12.8]} 89. Rc8
{[%clk 0:00:10.6]} 89... Kc5 {[%clk 0:00:12.9]} 90. Kf3 {[%clk 0:00:10.9]} 90...
Rg7 {[%clk 0:00:13.1]} 91. Rh8 {[%clk 0:00:09.9]} 91... Re7 {[%clk 0:00:14]} 92.
Rh5+ {[%clk 0:00:08.6]} 92... Kc4 {[%clk 0:00:13.7]} 93. Rh4+ {[%clk 0:00:08.8]}
93... Nd4+ {[%clk 0:00:14.6]} 94. Kf4 {[%clk 0:00:07.9]} 94... Kd5 {[%clk
0:00:15.5]} 95. Kg5 {[%clk 0:00:06.7]} 95... Ne6+ {[%clk 0:00:15.1]} 96. Kf6
{[%clk 0:00:06.8]} 96... Re8 {[%clk 0:00:15.3]} 97. Rh5+ {[%clk 0:00:07.3]}
97... Kd6 {[%clk 0:00:15.3]} 98. Ra5 {[%clk 0:00:07]} 98... Rf8+ {[%clk
0:00:15.4]} 99. Kg6 {[%clk 0:00:07.4]} 99... Rf1 {[%clk 0:00:16.3]} 100. Ra6+
{[%clk 0:00:07.6]} 100... Kd7 {[%clk 0:00:16.8]} 101. Ra7+ {[%clk 0:00:08.2]}
101... Nc7 {[%clk 0:00:17.3]} 102. Ra3 {[%clk 0:00:07.3]} 102... Ke7 {[%clk
0:00:16.8]} 103. Re3+ {[%clk 0:00:07.2]} 103... Ne6 {[%clk 0:00:17.1]} 104. Ra3
{[%clk 0:00:07.8]} 104... Rf6+ {[%clk 0:00:17.1]} 105. Kh5 {[%clk 0:00:08.4]}
105... Rf8 {[%clk 0:00:16]} 106. Kg4 {[%clk 0:00:08.6]} 106... Kf6 {[%clk
0:00:16.9]} 107. Ra6 {[%clk 0:00:08.7]} 1/2-1/2